fUSD/lending_fUSD_20260227
["ID","MTS","AMOUNT","RATE_DAILY","PERIOD"]
[406823312,1772208644915,-500.0,0.00016548,2]
[406823313,1772208644923,-500.0,0.00016602,2]
[406823314,1772208644932,-174.00015664,0.00016614,2]
[406823315,1772208644940,-500.0,0.00016657,2]
[406823316,1772208644949,-500.0,0.00016712,2]
[406823317,1772208644958,-500.0,0.00016767,2]
[406823318,1772208644967,-500.0,0.00016822,2]
[406823319,1772208644977,-15552.20665491,0.00016824,2]
[406823320,1772208644986,-35922.69063553,0.00016838,2]
[406823321,1772208644995,-500.0,0.00016876,2]
[406823322,1772208645005,-500.0,0.00016931,2]
[406823323,1772208645014,-500.0,0.00016986,2]
[406823324,1772208645023,-300.0,0.00017,2]
[406823325,1772208645032,-32158.97035652,0.00017,2]
[406823326,1772208645041,-500.0,0.00017041,2]
[406823327,1772208645051,-500.0,0.00017096,2]
[406823328,1772208645060,-500.0,0.0001715,2]
[406823329,1772208645069,-500.0,0.00017205,2]
[406823330,1772208645079,-500.0,0.0001726,2]
[406823331,1772208645089,-500.0,0.00017315,2]
[406823332,1772208645098,-500.0,0.0001737,2]
[406823333,1772208645107,-500.0,0.00017424,2]
[406823334,1772208645116,-324.01719171,0.00017479,2]
[406823335,1772208645126,-500.0,0.00017808,2]
[406823336,1772208645135,-500.0,0.00017863,2]
[406823337,1772208645284,-1075.08672241,0.0001789,2]
[406823338,1772208645294,-25000.0,0.00017891,3]
[406823339,1772208645305,-25000.0,0.000179,3]
[406823340,1772208645315,-35922.69063553,0.000179,2]
[406823341,1772208645325,-25000.0,0.000179,3]
[406823342,1772208645333,-1783.25363654,0.000179,2]
[406823343,1772208645342,-375.94211009,0.000179,2]
[406823344,1772208645352,-2195.67203992,0.000179,2]
[406823345,1772208645361,-4799.34212234,0.000179,2]
[406823346,1772208645370,-15552.20665491,0.000179,2]
[406823347,1772208645379,-500.0,0.00017918,2]
[406823348,1772208645388,-500.0,0.00017972,2]
[406823349,1772208645397,-501.50601316,0.00017973,2]
[406823350,1772208645406,-308.59204947,0.00017973,2]
[406823351,1772208645415,-500.0,0.00017973,2]
[406823352,1772208645425,-504.17214118,0.00017973,2]
[406823353,1772208645435,-505.53161927,0.00017973,2]
[406823354,1772208645443,-368.42176142,0.0001799,2]
[406823355,1772208645452,-368.42176142,0.0001799,2]
[406823356,1772208645462,-151.0,0.00017997,2]
[406823357,1772208645471,-300.0,0.00017999,2]
[406823358,1772208645480,-666.0,0.00017999,2]
[406823359,1772208645490,-300.0,0.00017999,2]
[406823360,1772208645499,-666.0,0.00017999,2]
[406823361,1772208645508,-300.0,0.00017999,2]
[406823362,1772208645517,-6306767.66955746,0.00018,2]
[406823365,1772208645768,-96.78125485,0.00018,2]
[406823366,1772208645779,-884252.25439837,0.00018,2]
[406823367,1772208645834,-1838.0,0.00018,2]
[406823368,1772208645849,-5116.58706824,0.00018,2]
[406823369,1772208645860,-755.3088,0.00018,2]
[406823371,1772208646016,-403.81058255,0.00018,2]
[406823372,1772208646027,-7672.62815282,0.00018,2]
[406823373,1772208646038,-137380.78786233,0.00018,2]
[406823374,1772208646093,-7217.6116736,0.00018,2]
[406823375,1772208646105,-20019.43557467,0.00018,2]
[406823376,1772208646154,-969.93211338,0.00018,2]
[406823382,1772208823815,12301.82215781,8.182e-05,2]
[406823383,1772208905529,4133.1798,8.117e-05,2]
[406823384,1772208911449,33914.6003,8.117e-05,2]
[406823385,1772209118759,12491.653926,8.178e-05,2]
[406823386,1772209207029,1896558.86363719,8.092e-05,2]
[406823387,1772209207070,103441.13636281,8.092e-05,2]
[406823389,1772209347603,5000.01,8.092e-05,2]
[406823390,1772209347637,5000.01,8.092e-05,2]
[406823391,1772209347668,5000.01,8.092e-05,2]
[406823392,1772209347695,5000.01,8.092e-05,2]
[406823393,1772209347721,5000.01,8.092e-05,2]
[406823394,1772209347753,5000.01,8.092e-05,2]
[406823395,1772209347786,5000.01,8.092e-05,2]
[406823396,1772209347818,1896558.86363719,8.092e-05,2]
[406823397,1772209347858,68441.06636281,8.092e-05,2]
[406823398,1772209513434,5000.01,8.092e-05,2]
[406823399,1772209513461,5000.01,8.092e-05,2]
[406823400,1772209513486,5000.01,8.092e-05,2]
[406823401,1772209513515,5000.01,8.092e-05,2]
[406823402,1772209513544,5000.01,8.092e-05,2]
[406823403,1772209513570,5000.01,8.092e-05,2]
[406823404,1772209513595,5000.01,8.092e-05,2]
[406823405,1772209513620,5000.01,8.092e-05,2]
[406823406,1772209513645,5000.01,8.092e-05,2]
[406823407,1772209513669,5000.01,8.092e-05,2]
[406823408,1772209513696,10000.01,8.092e-05,2]
[406823409,1772209513722,10000.01,8.092e-05,2]
[406823410,1772209513749,10000.01,8.092e-05,2]
[406823411,1772209513775,10000.01,8.092e-05,2]
[406823412,1772209513803,10000.01,8.092e-05,2]
[406823413,1772209513829,10000.01,8.092e-05,2]
[406823414,1772209513854,10000.01,8.092e-05,2]
[406823415,1772209513880,10000.01,8.092e-05,2]
[406823416,1772209513906,10000.01,8.092e-05,2]
[406823417,1772209513931,10000.01,8.092e-05,2]
[406823418,1772209513963,1431558.93363719,8.092e-05,2]
[406823419,1772209561329,300.0,8.091e-05,2]
[406823421,1772209621557,300.0,8.091e-05,2]
[406823422,1772209621994,150.0,8.091e-05,2]
[406823423,1772209623179,300.0,8.091e-05,2]
[406823424,1772209649973,500.0,8.09e-05,2]
[406823425,1772209734170,158.03,6.526e-05,2]
[406823426,1772209802166,1200.0,8.091e-05,2]
[406823427,1772209802196,300.0,8.091e-05,2]
[406823428,1772209803385,300.0,8.091e-05,2]
[406823429,1772209803758,150.0,8.091e-05,2]
[406823457,1772209832047,-304.637601,8.092e-05,2]
[406823458,1772209832100,-2364.61060515,8.092e-05,2]
[406823459,1772209832152,-520.26224,8.092e-05,2]
[406823460,1772209832164,-44250.83514387,8.092e-05,2]
[406823473,1772209838854,-371000.52077279,8.092e-05,2]
[406823474,1772209838864,-685.5342105,8.113e-05,2]
[406823475,1772209838873,-5000.0,8.113e-05,2]
[406823476,1772209838883,-250.0,8.135e-05,2]
[406823477,1772209838893,-2104.99775097,8.141e-05,2]
[406823478,1772209838902,-250.0,8.168e-05,2]
[406823479,1772209838912,-1242.537912,8.178e-05,2]
[406823480,1772209838921,-49360.0,8.192e-05,2]
[406823481,1772209838930,-1500.0,8.516e-05,2]
[406823482,1772209838939,-365.725758,8.559e-05,2]
[406823483,1772209838948,-207.558678,8.56e-05,2]
[406823484,1772209838958,-213.579891,8.56e-05,2]
[406823485,1772209838967,-4312.84,8.56e-05,2]
[406823486,1772209838976,-150.99,8.56e-05,2]
[406823487,1772209838985,-9999.99,8.56e-05,2]
[406823488,1772209838995,-299.99,8.56e-05,2]
[406823489,1772209839004,-9999.99,8.56e-05,2]
[406823490,1772209839013,-999.99,8.56e-05,2]
[406823491,1772209839023,-150.99,8.56e-05,2]
[406823492,1772209839032,-3397.72,8.703e-05,2]
[406823493,1772209839041,-500.0,8.706e-05,2]
[406823494,1772209839051,-4792.5,8.867e-05,2]
[406823495,1772209839060,-1680.0,8.9e-05,2]
[406823496,1772209839070,-191.0,8.9e-05,2]
[406823497,1772209839084,-255.0,8.9e-05,2]
[406823498,1772209839093,-195.0,8.901e-05,2]
[406823499,1772209839103,-250.0,8.901e-05,2]
[406823501,1772209839113,-195.0,8.901e-05,2]
[406823502,1772209839123,-195.0,8.901e-05,2]
[406823503,1772209839132,-193.0,8.901e-05,2]
[406823504,1772209839142,-5000.0,8.901e-05,2]
[406823505,1772209839151,-195.0,8.901e-05,2]
[406823506,1772209839161,-1590.3491,8.982e-05,2]
[406823507,1772209839170,-32885.2992,9.008e-05,2]
[406823508,1772209839180,-2500.0,9.008e-05,2]
[406823509,1772209839190,-195.0,9.009e-05,2]
[406823510,1772209839199,-166.66,9.028e-05,2]
[406823511,1772209839208,-97918.72322127,9.108e-05,2]
[406823512,1772209839217,-180.79640327,9.248e-05,2]
[406823513,1772209839227,-166.66,9.326e-05,2]
[406823514,1772209839236,-306.73,9.594e-05,2]
[406823515,1772209839246,-166.66,9.624e-05,2]
[406823516,1772209839255,-166.0,9.626e-05,2]
[406823518,1772209839266,-150.0,9.664e-05,2]
[406823520,1772209839275,-205.97279745,9.664e-05,2]
[406823522,1772209839285,-500.0,9.664e-05,2]
[406823524,1772209839294,-150.0,9.664e-05,2]
[406823526,1772209839303,-500.0,9.664e-05,2]
[406823528,1772209839313,-500.0,9.664e-05,2]
[406823529,1772209839322,-150.0,9.664e-05,2]
[406823531,1772209839331,-500.0,9.664e-05,2]
[406823533,1772209839341,-500.0,9.719e-05,2]
[406823535,1772209839349,-155.24410738,9.719e-05,2]
[406823537,1772209839358,-500.0,9.719e-05,2]
[406823539,1772209839367,-500.0,9.719e-05,2]
[406823541,1772209839377,-500.0,9.752e-05,2]
[406823543,1772209839386,-500.0,9.752e-05,2]
[406823545,1772209839396,-500.0,9.752e-05,2]
[406823546,1772209839406,-500.0,9.752e-05,2]
[406823547,1772209839415,-500.0,9.752e-05,2]
[406823549,1772209839424,-500.0,9.774e-05,2]
[406823550,1772209839434,-500.0,9.774e-05,2]
[406823551,1772209839444,-500.0,9.774e-05,2]
[406823552,1772209839453,-2351.0,9.79e-05,2]
[406823553,1772209839463,-433.0,9.79e-05,2]
[406823554,1772209839472,-500.0,9.807e-05,2]
[406823555,1772209839481,-500.0,9.807e-05,2]
[406823556,1772209839491,-500.0,9.807e-05,2]
[406823557,1772209839679,-500.0,9.807e-05,2]
[406823558,1772209839689,-508.41955894,9.807e-05,2]
[406823559,1772209839699,-500.0,9.828e-05,2]
[406823560,1772209839709,-500.0,9.828e-05,2]
[406823561,1772209839718,-500.0,9.828e-05,2]
[406823562,1772209839728,-500.0,9.862e-05,2]
[406823563,1772209839738,-164.37590583,9.862e-05,2]
[406823564,1772209839748,-500.0,9.862e-05,2]
[406823565,1772209839757,-500.0,9.862e-05,2]
[406823566,1772209839767,-159.05,9.863e-05,2]
[406823567,1772209839777,-500.0,9.883e-05,2]
[406823568,1772209839786,-457.08298048,9.883e-05,2]
[406823569,1772209839806,-500.0,9.883e-05,2]
[406823571,1772209839816,-500.0,9.916e-05,2]
[406823572,1772209839826,-500.0,9.916e-05,2]
[406823573,1772209839836,-500.0,9.916e-05,2]
[406823574,1772209839846,-166.66,9.922e-05,2]
[406823575,1772209839857,-500.0,9.938e-05,2]
[406823576,1772209839866,-500.0,9.938e-05,2]
[406823577,1772209839876,-500.0,9.938e-05,2]
[406823578,1772209839886,-500.0,9.971e-05,2]
[406823579,1772209839896,-500.0,9.971e-05,2]
[406823580,1772209839906,-500.0,9.971e-05,2]
[406823582,1772209839916,-500.0,9.993e-05,2]
[406823584,1772209839926,-500.0,9.993e-05,2]
[406823585,1772209839935,-1198.0,0.0001,2]
[406823586,1772209839945,-151.0,0.0001,2]
[406823588,1772209839954,-151.0,0.0001,2]
[406823589,1772209839963,-151.0,0.0001,2]
[406823590,1772209839973,-200.0,0.0001,2]
[406823591,1772209839982,-151.0,0.0001,2]
[406823592,1772209839991,-151.0,0.0001,2]
[406823593,1772209840000,-151.0,0.0001,2]
[406823594,1772209840009,-151.0,0.0001,2]
[406823595,1772209840019,-151.0,0.0001,2]
[406823596,1772209840028,-151.0,0.0001,2]
[406823597,1772209840038,-151.0,0.0001,2]
[406823598,1772209840047,-151.0,0.0001,2]
[406823599,1772209840056,-151.0,0.0001,2]
[406823600,1772209840066,-208.0,0.0001,2]
[406823601,1772209840075,-500.0,0.0001,2]
[406823602,1772209840088,-500.0,0.0001,2]
[406823603,1772209840098,-500.0,0.0001,2]
[406823604,1772209840107,-500.0,0.0001,2]
[406823605,1772209840117,-500.0,0.0001,2]
[406823606,1772209840126,-500.0,0.0001,2]
[406823607,1772209840135,-500.0,0.0001,2]
[406823608,1772209840145,-500.0,0.0001,2]
[406823609,1772209840155,-500.0,0.0001,2]
[406823610,1772209840164,-500.0,0.0001,2]
[406823612,1772209840174,-500.0,0.0001,2]
[406823614,1772209840183,-500.0,0.0001,2]
[406823616,1772209840193,-500.0,0.0001,2]
[406823619,1772209840204,-500.0,0.0001,2]
[406823621,1772209840214,-500.0,0.0001,2]
[406823623,1772209840224,-500.0,0.0001,2]
[406823625,1772209840233,-151.0,0.0001,2]
[406823628,1772209840242,-500.0,0.0001,2]
[406823630,1772209840252,-151.0,0.0001,2]
[406823632,1772209840262,-500.0,0.0001,2]
[406823634,1772209840273,-151.0,0.0001,2]
[406823636,1772209840283,-500.0,0.0001,2]
[406823638,1772209840292,-151.0,0.0001,2]
[406823640,1772209840302,-500.0,0.0001,2]
[406823642,1772209840311,-151.0,0.0001,2]
[406823644,1772209840321,-500.0,0.0001,2]
[406823646,1772209840330,-151.0,0.0001,2]
[406823648,1772209840340,-500.0,0.0001,2]
[406823650,1772209840350,-151.0,0.0001,2]
[406823652,1772209840360,-151.0,0.0001,2]
[406823654,1772209840370,-500.0,0.0001,2]
[406823656,1772209840379,-151.0,0.0001,2]
[406823658,1772209840390,-500.0,0.0001,2]
[406823660,1772209840400,-151.0,0.0001,2]
[406823662,1772209840410,-151.0,0.0001,2]
[406823664,1772209840419,-500.0,0.0001,2]
[406823666,1772209840430,-151.0,0.0001,2]
[406823668,1772209840439,-151.0,0.0001,2]
[406823670,1772209840449,-500.0,0.0001,2]
[406823672,1772209840458,-151.0,0.0001,2]
[406823674,1772209840468,-151.0,0.0001,2]
[406823676,1772209840479,-500.0,0.0001,2]
[406823678,1772209840488,-151.0,0.0001,2]
[406823680,1772209840497,-151.0,0.0001,2]
[406823682,1772209840506,-500.0,0.0001,2]
[406823684,1772209840517,-151.0,0.0001,2]
[406823686,1772209840527,-151.0,0.0001,2]
[406823688,1772209840536,-151.0,0.0001,2]
[406823690,1772209840546,-151.0,0.0001,2]
[406823692,1772209840556,-151.0,0.0001,2]
[406823694,1772209840566,-151.0,0.0001,2]
[406823697,1772209840575,-151.0,0.0001,2]
[406823699,1772209840584,-151.0,0.0001,2]
[406823701,1772209840594,-151.0,0.0001,2]
[406823703,1772209840603,-1053.03002661,0.0001,2]
[406823705,1772209840612,-151.0,0.0001,2]
[406823707,1772209840622,-151.0,0.0001,2]
[406823709,1772209840632,-151.0,0.0001,2]
[406823711,1772209840641,-151.0,0.0001,2]
[406823713,1772209840651,-151.0,0.0001,2]
[406823715,1772209840660,-151.0,0.0001,2]
[406823717,1772209840670,-151.0,0.0001,2]
[406823719,1772209840679,-151.0,0.0001,2]
[406823721,1772209840688,-337.0,0.0001,2]
[406823723,1772209840698,-337.0,0.0001,2]
[406823725,1772209840707,-338.83518363,0.0001,2]
[406823727,1772209840716,-500.0,0.00010026,2]
[406823729,1772209840725,-150.0,0.00010026,2]
[406823731,1772209840734,-500.0,0.00010026,2]
[406823733,1772209840744,-4000.0,0.00010027,2]
[406823735,1772209840754,-150.0,0.00010048,2]
[406823737,1772209840763,-500.0,0.00010048,2]
[406823739,1772209840773,-500.0,0.00010081,2]
[406823741,1772209840783,-500.0,0.00010081,2]
[406823743,1772209840793,-500.0,0.00010102,2]
[406823745,1772209840804,-500.0,0.00010136,2]
[406823747,1772209840814,-500.0,0.00010136,2]
[406823749,1772209840824,-500.0,0.00010157,2]
[406823751,1772209840834,-497.09622115,0.0001019,2]
[406823753,1772209840844,-500.0,0.0001019,2]
[406823755,1772209840853,-500.0,0.00010212,2]
[406823757,1772209840863,-166.66,0.00010221,2]
[406823759,1772209840872,-1191.28472157,0.00010227,2]
[406823761,1772209840881,-500.0,0.00010245,2]
[406823763,1772209840890,-500.0,0.00010267,2]
[406823765,1772209840899,-389.172521,0.00010271,2]
[406823767,1772209840909,-1198.0,0.00010274,2]
[406823769,1772209840918,-4000.0,0.00010278,2]
[406823771,1772209840928,-500.0,0.000103,2]
[406823773,1772209840937,-848.64803995,0.000103,2]
[406823775,1772209840946,-699.99,0.000103,2]
[406823777,1772209840955,-500.0,0.000103,2]
[406823779,1772209840965,-500.0,0.000103,2]
[406823781,1772209840974,-977.54963407,0.000103,2]
[406823783,1772209840983,-744.54912065,0.000103,2]
[406823785,1772209840992,-500.0,0.000103,2]
[406823787,1772209841001,-500.0,0.000103,2]
[406823789,1772209841010,-500.0,0.000103,2]
[406823791,1772209841020,-500.0,0.000103,2]
[406823793,1772209841030,-500.0,0.000103,2]
[406823795,1772209841039,-500.0,0.000103,2]
[406823797,1772209841049,-500.0,0.000103,2]
[406823799,1772209841058,-500.0,0.000103,2]
[406823801,1772209841067,-956.34100069,0.000103,2]
[406823803,1772209841080,-500.0,0.000103,2]
[406823805,1772209841089,-869.50668288,0.000103,2]
[406823807,1772209841099,-500.0,0.000103,2]
[406823810,1772209841109,-795.55896205,0.000103,2]
[406823811,1772209841119,-500.0,0.000103,2]
[406823814,1772209841129,-888.46058708,0.000103,2]
[406823815,1772209841138,-500.0,0.000103,2]
[406823817,1772209841148,-500.0,0.000103,2]
[406823820,1772209841160,-500.0,0.000103,2]
[406823821,1772209841169,-500.0,0.000103,2]
[406823824,1772209841179,-500.0,0.000103,2]
[406823825,1772209841189,-500.0,0.000103,2]
[406823827,1772209841198,-500.0,0.000103,2]
[406823830,1772209841208,-500.0,0.000103,2]
[406823832,1772209841217,-500.0,0.000103,2]
[406823834,1772209841226,-500.66048713,0.000103,2]
[406823836,1772209841236,-736.56274826,0.000103,2]
[406823837,1772209841246,-500.0,0.000103,2]
[406823839,1772209841255,-500.0,0.000103,2]
[406823841,1772209841265,-500.0,0.000103,2]
[406823843,1772209841274,-500.66048713,0.000103,2]
[406823845,1772209841283,-500.0,0.000103,2]
[406823847,1772209841293,-500.0,0.000103,2]
[406823849,1772209841302,-878.62348187,0.000103,2]
[406823851,1772209841311,-500.0,0.000103,2]
[406823853,1772209841320,-500.0,0.000103,2]
[406823855,1772209841329,-500.0,0.000103,2]
[406823857,1772209841338,-500.0,0.000103,2]
[406823859,1772209841347,-500.0,0.000103,2]
[406823861,1772209841356,-500.0,0.000103,2]
[406823863,1772209841366,-500.0,0.000103,2]
[406823865,1772209841375,-500.0,0.000103,2]
[406823867,1772209841384,-500.0,0.000103,2]
[406823869,1772209841394,-500.0,0.000103,2]
[406823871,1772209841403,-500.0,0.000103,2]
[406823873,1772209841412,-500.0,0.000103,2]
[406823875,1772209841421,-500.0,0.000103,2]
[406823877,1772209841430,-500.0,0.000103,2]
[406823879,1772209841440,-538.7513968,0.000103,2]
[406823881,1772209841449,-500.0,0.00010322,2]
[406823883,1772209841458,-500.0,0.00010355,2]
[406823885,1772209841467,-500.0,0.00010376,2]
[406823887,1772209841476,-357.0,0.0001041,2]
[406823889,1772209841485,-500.0,0.00010486,2]
[406823891,1772209841494,-166.66,0.00010519,2]
[406823893,1772209841503,-4000.0,0.00010529,2]
[406823895,1772209841512,-1198.0,0.00010548,2]
[406823897,1772209841521,-200.0,0.00010548,2]
[406823899,1772209841530,-250.0,0.00010692,2]
[406823901,1772209841539,-500.0,0.0001076,2]
[406823903,1772209841549,-292.64201745,0.00010766,2]
[406823905,1772209841558,-3292.0,0.00010769,2]
[406823907,1772209841568,-736.0,0.00010769,2]
[406823909,1772209841577,-4000.0,0.00010779,2]
[406823911,1772209841586,-1198.0,0.00010822,2]
[406823913,1772209841595,-500.0,0.00010829,2]
[406823915,1772209841604,-500.0,0.00010829,2]
[406823917,1772209841613,-500.0,0.00010829,2]
[406823919,1772209841622,-500.0,0.00010829,2]
[406823921,1772209841632,-500.0,0.00010829,2]
[406823923,1772209841641,-500.0,0.00010829,2]
[406823925,1772209841650,-501.75629018,0.00010829,2]
[406823927,1772209841659,-500.0,0.00010829,2]
[406823929,1772209841668,-500.99420847,0.00010829,2]
[406823931,1772209841677,-500.0,0.00010829,2]
[406823933,1772209841687,-501.82753949,0.00010829,2]
[406823935,1772209841696,-455.66842206,0.00010829,2]
[406823937,1772209841706,-500.0,0.00010829,2]
[406823939,1772209841716,-500.0,0.00010829,2]
[406823941,1772209841725,-500.0,0.00010829,2]
[406823943,1772209841735,-341.49183462,0.00010829,2]
[406823945,1772209841744,-2195.67203998,0.000109,2]
[406823947,1772209841753,-261.14366837,0.00010922,2]
[406823949,1772209841763,-4000.0,0.0001103,2]
[406823951,1772209841773,-500.0,0.00011034,2]
[406823953,1772209841782,-1198.0,0.00011096,2]
[406823955,1772209841791,-200.0,0.00011096,2]
[406823957,1772209841801,-15552.20665494,0.00011099,2]
[406823959,1772209841812,-15552.20665491,0.00011099,2]
[406823961,1772209841822,-15552.20665491,0.00011099,2]
[406823963,1772209841831,-1512.33,0.00011129,2]
[406823965,1772209841840,-500.0,0.00011308,2]
[406823967,1772209841849,-15552.20665491,0.00011309,2]
[406823969,1772209841858,-1198.0,0.0001137,2]
[406823971,1772209841867,-1096.18978779,0.00011377,2]
[406823973,1772209841877,-1000.0,0.00011377,2]
[406823975,1772209841886,-1000.0,0.00011377,2]
[406823977,1772209841897,-1000.0,0.00011377,2]
[406823979,1772209841906,-2778.74,0.00011507,2]
[406823981,1772209841915,-159.05,0.00011507,2]
[406823983,1772209841924,-500.0,0.00011582,2]
[406823985,1772209841933,-1198.0,0.00011644,2]
[406823987,1772209841943,-200.0,0.00011644,2]
[406823989,1772209841952,-1252.0,0.00011845,2]
[406823991,1772209841961,-4609.0,0.00011846,2]
[406823993,1772209841971,-303.34071404,0.00011856,2]
[406823995,1772209841980,-1198.0,0.00011918,2]
[406823997,1772209841989,-500.0,0.00011924,2]
[406823999,1772209841999,-1500.0,0.00011924,2]
[406824001,1772209842008,-1500.0,0.00011924,2]
[406824003,1772209842018,-52754.8,0.00012055,2]
[406824005,1772209842027,-1198.0,0.00012192,2]
[406824007,1772209842037,-200.0,0.00012192,2]
[406824009,1772209842046,-15552.20665491,0.00012407,2]
[406824011,1772209842055,-1198.0,0.00012466,2]
[406824013,1772209842065,-2000.0,0.00012472,2]
[406824015,1772209842074,-2000.0,0.00012472,2]
[406824017,1772209842087,-150.0,0.00012628,2]
[406824019,1772209842100,-150.0,0.00012629,2]
[406824021,1772209842109,-150.0,0.0001263,2]
[406824023,1772209842118,-150.0,0.00012631,2]
[406824025,1772209842129,-150.0,0.00012632,2]
[406824027,1772209842138,-150.0,0.00012633,2]
[406824029,1772209842148,-150.0,0.00012634,2]
[406824031,1772209842160,-150.0,0.00012635,2]
[406824033,1772209842170,-150.0,0.00012636,2]
[406824035,1772209842179,-150.0,0.00012637,2]
[406824037,1772209842189,-207.967867,0.00012638,2]
[406824039,1772209842198,-1198.0,0.0001274,2]
[406824041,1772209842208,-200.0,0.0001274,2]
[406824044,1772209842217,-467.007025,0.00012839,2]
[406824045,1772209842226,-500.0,0.0001289,2]
[406824047,1772209842235,-500.0,0.0001289,2]
[406824050,1772209842245,-611.11529278,0.0001289,2]
[406824052,1772209842255,-500.0,0.0001289,2]
[406824054,1772209842264,-500.0,0.0001289,2]
[406824056,1772209842274,-563.07260655,0.0001289,2]
[406824057,1772209842283,-500.0,0.0001289,2]
[406824060,1772209842294,-500.0,0.0001289,2]
[406824062,1772209842303,-869.88788903,0.0001289,2]
[406824064,1772209842316,-500.0,0.0001289,2]
[406824066,1772209842326,-500.0,0.0001289,2]
[406824068,1772209842336,-500.0,0.0001289,2]
[406824070,1772209842345,-500.0,0.0001289,2]
[406824072,1772209842355,-500.0,0.0001289,2]
[406824074,1772209842364,-500.0,0.0001289,2]
[406824076,1772209842373,-500.0,0.0001289,2]
[406824077,1772209842382,-500.0,0.0001289,2]
[406824078,1772209842392,-500.0,0.0001289,2]
[406824079,1772209842402,-500.0,0.0001289,2]
[406824080,1772209842412,-500.0,0.0001289,2]
[406824081,1772209842422,-500.0,0.0001289,2]
[406824082,1772209842431,-500.0,0.0001289,2]
[406824083,1772209842441,-500.0,0.0001289,2]
[406824084,1772209842450,-500.0,0.0001289,2]
[406824085,1772209842459,-500.0,0.0001289,2]
[406824086,1772209842468,-500.0,0.0001289,2]
[406824087,1772209842477,-500.0,0.0001289,2]
[406824088,1772209842487,-500.0,0.0001289,2]
[406824089,1772209842496,-500.0,0.0001289,2]
[406824090,1772209842508,-500.0,0.0001289,2]
[406824091,1772209842517,-500.0,0.0001289,2]
[406824093,1772209842528,-500.0,0.0001289,2]
[406824095,1772209842537,-500.0,0.0001289,2]
[406824097,1772209842547,-500.0,0.0001289,2]
[406824099,1772209842556,-500.0,0.0001289,2]
[406824101,1772209842565,-500.0,0.0001289,2]
[406824103,1772209842574,-500.0,0.0001289,2]
[406824105,1772209842583,-500.0,0.0001289,2]
[406824107,1772209842592,-500.0,0.0001289,2]
[406824109,1772209842602,-500.0,0.0001289,2]
[406824111,1772209842612,-500.0,0.0001289,2]
[406824113,1772209842622,-500.0,0.0001289,2]
[406824115,1772209842631,-500.0,0.0001289,2]
[406824117,1772209842641,-500.0,0.0001289,2]
[406824119,1772209842650,-500.0,0.0001289,2]
[406824121,1772209842660,-500.0,0.0001289,2]
[406824123,1772209842670,-500.0,0.0001289,2]
[406824125,1772209842679,-500.0,0.0001289,2]
[406824127,1772209842689,-500.0,0.0001289,2]
[406824129,1772209842698,-500.0,0.0001289,2]
[406824131,1772209842712,-500.0,0.0001289,2]
[406824133,1772209842721,-500.0,0.0001289,2]
[406824135,1772209842730,-500.0,0.0001289,2]
[406824137,1772209842740,-500.0,0.0001289,2]
[406824139,1772209842750,-500.0,0.0001289,2]